Cogmind - Beta 13 @@@ ROGUE MODE // 2024.07.07 @ 15:20:07 Player: StinksBinx Result: Destroyed by Y-45 Defender with Heavy Assault Rifle Performance ------------- Evolutions (1) 500 Regions Visited (2) 400 Robots Destroyed (8) 40 Value Destroyed (192) 192 Prototype IDs (0) 0 Alien Tech Used (0) 0 Bonus (0) 0 TOTAL SCORE: 1132 Bonus ------- None Cogmind --------- Core Integrity 0/400 Matter 119/300 Energy 85/100 System Corruption 0% Temperature Cool (6) Movement Rolling (80) Location -9/Materials Parts ------- > --- POWER (1) -------- (None) > --- PROPULSION (2) --- Wheel > --- UTILITY (4) ------ Small Storage Unit Signal Interpreter Power Shielding Power Shielding > --- WEAPON (2) ------- Small Laser > --- INVENTORY (8) ---- Ion Engine Ion Engine Peak State ------------ > --- POWER ------------ Improved Ion Engine > --- PROPULSION ------- Wheel Compact Wheel > --- UTILITY ---------- Small Storage Unit Power Shielding Power Shielding > --- WEAPON ----------- Assault Rifle Light Cannon > --- INVENTORY -------- Ion Engine Ion Engine Signal Interpreter Assault Rifle Grenade Launcher [Rating: 9] Favorites ----------- Power Ion Engine Engine Ion Engine Propulsion Wheel Wheel Wheel Utility Power Shielding Storage Small Storage Unit Processor Signal Interpreter Protection Power Shielding Weapon Assault Rifle Energy Gun Small Laser Ballistic Gun Assault Rifle Ballistic Cannon Light Cannon Launcher Grenade Launcher Build | -11 -10 -9 ------- Run | Yrd Mat Mat Slots Evolved 2 | . . 2 Power . | . . . Propulsion . | . . . Utility 2 | . . 2 Weapon . | . . . Parts Attached 21 | 6 3 12 Power 3 | 1 . 2 Engine 3 | 1 . 2 Core . | . . . Reactor . | . . . Propulsion 3 | 2 . 1 Treads . | . . . Leg . | . . . Wheel 3 | 2 . 1 Hover . | . . . Flight . | . . . Utility 4 | 1 1 2 Device . | . . . Storage 1 | 1 . . Processor 1 | . . 1 Hackware . | . . . Protection 2 | . 1 1 Artifact . | . . . Weapon 11 | 2 2 7 Energy Gun 1 | . . 1 Energy Cannon . | . . . Ballistic Gun 3 | 2 . 1 Ballistic Cannon 3 | . 1 2 Launcher 4 | . 1 3 Special Weapon . | . . . Impact Weapon . | . . . Slashing Weapon . | . . . Piercing Weapon . | . . . Special Melee Weapon . | . . . Unidentified Prototypes . | . . . Parts Lost 7 | . . 7 Power 1 | . . 1 Propulsion 2 | . . 2 Utility . | . . . Weapon 4 | . . 4 Highest Loss Streak 7 | . . 7 To Critical Strikes . | . . . Average Slot Usage (%) 86 | . 93 78 Engine 12 | . 14 9 Wheel 23 | . 28 18 Storage 12 | . 14 11 Processor 1 | . . 2 Protection 14 | . 10 17 Ballistic Gun 11 | . 14 9 Ballistic Cannon 3 | . 1 7 Launcher 6 | . 9 2 Naked Turns . | . . . Heaviest Build 20 | 12 16 20 Greatest Support 26 | 26 26 26 Greatest Overweight (x) 3 | 3 . 1 Average Overweight (x) . | . . . Largest Inventory Capacity 8 | 8 8 8 Average Capacity 7 | 6 8 8 Most Carried 6 | 5 5 6 Average Carried 3 | 2 3 4 Final Capacity 8 | 8 8 8 Final Carried 5 | 2 5 2 Class Distribution -------------------- 100% | Mutant Dominant Class ---------------- Mutant | -10/Materials Mutant | -9/Materials Resources | -11 -10 -9 ----------- Run | Yrd Mat Mat Matter Collected 370 | 203 . 167 Remotely . | . . . Salvage Created 124 | . 8 116 Parts 15 | . 5 10 Haulers Intercepted . | . . . Recyclers Shooed . | . . . Parts Field Recycled . | . . . Retrieved Matter . | . . . Parts Self-Destructed . | . . . Prevented . | . . . Kills | -11 -10 -9 ------- Run | Yrd Mat Mat Combat Hostiles Destroyed 5 | . 2 3 Cannons 5 | . 2 3 Classes Destroyed 6 | . 1 5 Builder 1 | . . 1 Tunneler 1 | . . 1 Watcher 1 | . . 1 Swarmer 2 | . 2 . Grunt 1 | . . 1 Sentry 2 | . . 2 Best Kill Streak 4 | . 2 4 Combat Bots Only 2 | . 2 1 Max Kills in Single Turn 1 | . 1 1 Gunslinging . | . . . Exploded . | . . . Melee . | . . . Uniques/NPCs Destroyed . | . . . Combat | -11 -10 -9 -------- Run | Yrd Mat Mat Hostile Shots Fired 117 | . 11 106 Missed 36 | . 5 31 Damage Taken 1067 | . 51 1016 Core 427 | . 19 408 Absorbed by Shields . | . . . Redirected to Shielding 26 | . 1 25 Core Remaining (%) 96 | 100 92 . Volleys Fired 33 | . 3 30 Largest 1 | . 1 1 Hottest 35 | . 35 35 Shots Fired 33 | . 3 30 Gun 10 | . . 10 Cannon 14 | . 3 11 Launcher 9 | . . 9 Special . | . . . Kinetic 24 | . 3 21 Thermal . | . . . Explosive 9 | . . 9 Electromagnetic . | . . . Robot Hit Streak 11 | . 3 11 Robot Miss Streak 3 | . . 3 Penetration Max . | . . . Secondary Targets . | . . . Shots Hit Robots 22 | . 3 19 Core Hits 17 | . 2 15 Critical Kills . | . . . Critical Parts Destroyed . | . . . Critical Strikes . | . . . Melee Attacks . | . . . Impact . | . . . Slashing . | . . . Piercing . | . . . Sneak Attacks . | . . . Combat Hostiles . | . . . Follow-up Attacks . | . . . Damage Inflicted 522 | . 50 472 Guns 73 | . . 73 Cannons 207 | . 50 157 Explosions 242 | . . 242 Melee . | . . . Ramming . | . . . Kinetic 280 | . 50 230 Thermal . | . . . Explosive 242 | . . 242 Electromagnetic . | . . . Impact . | . . . Slashing . | . . . Piercing . | . . . Highest Corruption . | . . . Average Corruption . | . . . Corruption Purged . | . . . Corruption Blocked . | . . . Overload Shots . | . . . Overflow Damage . | . . . Projectiles . | . . . Explosions . | . . . Melee . | . . . Knockbacks . | . . . Impact . | . . . Kinetic . | . . . Secondary . | . . . Self-Inflicted Damage 19 | . . 19 Shots 1 | . . 1 Rammed . | . . . Targets Rammed . | . . . Kicked . | . . . Crushed . | . . . Highest Temperature 20 | . 14 20 Average Temperature 9 | . 9 9 Received Heat Transfer 420 | . . 420 Siege Activations . | . . . Robots Corrupted . | . . . Combat Hostiles . | . . . Parts Fried . | . . . Impact Corruptions . | . . . Robots Melted . | . . . Combat Hostiles . | . . . Parts Melted . | . . . Heat Transferred . | . . . Parts Sabotaged . | . . . Parts Stolen . | . . . Parts Stripped . | . . . Power Chain Reactions . | . . . Alert | -11 -10 -9 ------- Run | Yrd Mat Mat Peak Influence 211 | . 50 211 Initial 20 | . . 20 Average 46 | . 1 108 Maximum Alert Level 1 | . . 1 Low Security (%) 97 | 100 100 94 Level 1 2 | . . 6 Level 2 . | . . . Level 3 . | . . . Level 4 . | . . . Level 5 . | . . . High Security . | . . . Max Security . | . . . Squads Dispatched 1 | . . 1 Investigation . | . . . Extermination . | . . . Reinforcement 1 | . . 1 Assault . | . . . Garrison . | . . . Intercept . | . . . Searches Triggered . | . . . Construction Impeded . | . . . Haulers Reinforced . | . . . Active Scanning Responses . | . . . Cargo Convoy Interrupts . | . . . Stealth | -11 -10 -9 --------- Run | Yrd Mat Mat Distress Signals . | . . . Communications Jammed . | . . . Distress Signals . | . . . Times Spotted 13 | . 3 10 Peak Tracking Total 6 | . 3 6 Tactical Retreats . | . . . Traps | -11 -10 -9 ------- Run | Yrd Mat Mat Traps Triggered . | . . . Indirectly . | . . . Trap Hack Attempts . | . . . Triggered . | . . . Disarmed . | . . . Reprogrammed . | . . . Reused . | . . . Traps Extracted . | . . . Installed . | . . . Triggered . | . . . Machines | -11 -10 -9 ---------- Run | Yrd Mat Mat Machines Disabled 2 | . . 2 Max in Single Turn 1 | . . 1 Machines Repaired . | . . . Machines Dismantled . | . . . Machines Sabotaged . | . . . Overloaded Fab Kills . | . . . Hacking | -11 -10 -9 --------- Run | Yrd Mat Mat Machines Accessed 1 | . 1 . Terminals 1 | . 1 . Fabricators . | . . . Repair Stations . | . . . Recycling Units . | . . . Scanalyzers . | . . . Garrison Access . | . . . Total Hacks 1 | . 1 . Successful 1 | . 1 . Failed . | . . . Catastrophic . | . . . Database Lockouts . | . . . Manual . | . . . Terminals 1 | . 1 . Fabricators . | . . . Repair Stations . | . . . Recycling Units . | . . . Scanalyzers . | . . . Garrison Access . | . . . Terminal Hacks 1 | . 1 . Record 1 | . 1 . Fabricator Hacks . | . . . Repair Station Hacks . | . . . Recycling Unit Hacks . | . . . Scanalyzer . | . . . Garrison Access Hacks . | . . . Unauthorized Hacks . | . . . Terminals . | . . . Fabricators . | . . . Repair Stations . | . . . Recycling Units . | . . . Scanalyzers . | . . . Garrison Access . | . . . Data Cores Recovered . | . . . Used . | . . . Hacking Detections 1 | . 1 . Full Trace Events . | . . . Feedback Events . | . . . Feedback Blocked . | . . . Robot Schematics Acquired . | . . . Robots Built . | . . . Authchips . | . . . Time . | . . . Total Robot Build Rating . | . . . Part Schematics Acquired . | . . . Parts Built . | . . . Authchips . | . . . Time . | . . . Total Part Build Rating . | . . . Parts Repaired . | . . . Time . | . . . Parts Recycled . | . . . Recycled Matter . | . . . Retrieved Matter . | . . . Retrieved Components . | . . . Parts Scanalyzed . | . . . Part Schematics Acquired . | . . . Parts Damaged . | . . . Bothacking | -11 -10 -9 ------------ Run | Yrd Mat Mat Used RIF Installer . | . . . Robots Hacked . | . . . Non-combat . | . . . Combat . | . . . Robot Hacks Applied . | . . . Relay Couplers Released . | . . . Fabnet Peak Effective % . | . . . Robots Rewired . | . . . Allies Hacked . | . . . Hacks Repelled . | . . . Allies | -11 -10 -9 -------- Run | Yrd Mat Mat Total Allies . | . . . Largest Group . | . . . Highest-Rated Group . | . . . Highest-Rated Ally . | . . . Total Orders . | . . . Ally Attacks . | . . . Total Damage . | . . . Kills . | . . . Allies Corrupted . | . . . Allies Melted . | . . . Intel | -11 -10 -9 ------- Run | Yrd Mat Mat Robot Analysis Total . | . . . Derelict Logs Recovered . | . . . Drone Launches . | . . . Drone Recoveries . | . . . Exploration | -11 -10 -9 ------------- Run | Yrd Mat Mat Turns Passed 469 | 46 223 200 Spaces Moved 361 | 39 199 123 Core 21 | 21 . . Treads . | . . . Legs . | . . . Wheels 340 | 18 199 123 Hover . | . . . Flight . | . . . Fastest Speed 50 | 50 90 80 Average Speed 89 | 85 90 89 Slowest Speed 200 | 200 90 95 Overloaded Moves . | . . . Propulsion Burnouts . | . . . Robots Hopped . | . . . Cave-ins Triggered . | . . . Exploration Rate (%) 17 | 3 34 14 Regions Visited 2 Branch Regions . Pre-discovered Areas . | . . . Known Exits Taken . | . . . Unknown Exits Taken 2 | 1 1 . Scrap Searched . | . . . Spaces Dug 22 | . . 22 Terrain Destroyed 45 | . . 45 Melee . | . . . Projectile . | . . . AOE 45 | . . 45 Terrain Rammed . | . . . Walls Destroyed . | . . . Machines Disabled . | . . . Actions | -11 -10 -9 --------- Run | Yrd Mat Mat Total 469 | 51 239 179 Wait 42 | 1 30 11 Move 359 | 38 198 123 Hop . | . . . Pick Up 13 | 5 5 3 Fast Attach 2 | 2 . . Attach 12 | 4 2 6 Detach 1 | 1 . . Swap 7 | . 1 6 Drop . | . . . Fire 33 | . 3 30 Melee . | . . . Ram . | . . . Kick . | . . . Crush . | . . . Escape Stasis . | . . . Rewire . | . . . Trap . | . . . Miscellaneous . | . . . Route ------- -11/Scrapyard -10/Materials -9/Materials History --------- Turn | Location | Event 7 | -11/Scrapyard | Discovered new exit (range 16) 47 | -11/Scrapyard | Entered Materials 240 | -10/Materials | Discovered new exit (range 7) 270 | -10/Materials | Entered another Materials area 270 | -9/Materials | Evolved 2 slots: Utility x2 316 | -9/Materials | Build established: Mutant 446 | -9/Materials | Core integrity fell below 50% 465 | -9/Materials | Core integrity fell below 20% 470 | -9/Materials | Destroyed by Y-45 Defender with Heavy Assault Rifle Last Messages --------------- G-34 Mercenary destroyed. Grenade Launcher destroyed. W-16 Scout destroyed. Lgt. Cannon destroyed. The unstable cave ceiling collapses. Imp. Ion Engine destroyed. The unstable cave ceiling collapses. U-05 Engineer lays Concrete. Assault Rifle destroyed. U-05 Engineer lays Concrete. Acquired 12 matter. U-05 Engineer builds a Wall. G-34 Mercenary destroyed. Acquired 39 matter. U-05 Engineer builds a Wall. Acquired 10 matter. U-05 Engineer lays Concrete. Acquired Sml. Laser. U-05 Engineer lays Concrete. A-02 Transporter suffers critical hit (Burn). Map ----- +----------------------------------------------------+ | ?????????????????????????????????????# """"" + | | ?????????????????????????????????????# # | | ?????????????????????????????????????# "Y" # | | ?????????????????????????????????????# """ # | | ?????????????????????????????????????# # | | ?????????????????????????????????????## # #### | | ?????????????????????????????????????## ##?# | | ?????????????????????????????????????# #?# | | ?????????????????????????????????????# "#?# | | ?????????????????????????????????????# [ "#?# | | ?????????????????????????????????????# ""#?# | | ?????????????????????????????????????#### = #?# | | ????????????????????????????????????????# #?# | | ????????????????????????????????????????# =#?# | | ????????????????????????????????????????# #?# | | ??????????????????????????????????####### ### | | ??????????????????????????????????# ###+### | | ??????????????????????????????????# ! " | | ??????????????????????????????????# T "T | | ??????????????????????????????????# | | ???????????????????######?????????# ####### | | ??????????????????##!!!!##??#########+###?????###+ | | ??????????????????#! !#??# #???????? | | ??????????????????# #### #??????# """ | | ??????????#+####### =## ! #??????# """ | | ??????? ^ =%@ g[ ! #??????# """ | | ????????# = aYg= #??????# | | ????????# !! u # #?????? | | ????????# !! ##+##### #?????## | | ????????# # = #??????? | | ???????? ?+ " #######?????????"T | | ???????? ? # "" ###????????????????? | | ????????? ? # """"" ##??????????????????? | | ?????????# ]=? ?# """"" ###???????????????????? | | ?????????? !?? ??# """ #?????????????????????? | | ?????????? ?? ???# #?????????????????????? | | ????????????? ???+ ? #?????????????????????? | | ?????????????#????# ??? #?????????????????????? | | ??????????????????##???## ##?????????????????????? | | ????????????????????????##???????????????????????? | | ?????????????????????????????????????????????????? | | ?????????????????????????????????????????????????? | | ?????????????????????????????????????????????????? | | ?????????????????????????????????????????????????? | | ?????????????????????????????????????????????????? | | ?????????????????????????????????????????????????? | | ?????????????????????????????????????????????????? | | ?????????????????????????????????????????????????? | | ?????????????????????????????????????????????????? | | ?????????????????????????????????????????????????? | +----------------------------------------------------+ Best States ------------- Heat Dissipation 28 Energy Generation 12 Energy Capacity 265 Matter Stores 243 Matter Capacity 300 Sight Range 16 Terrain Scan Density 10 Power Shielding 33 Evasion (%) 50 Item Schematics ----------------- None Robot Schematics ------------------ None Fabricated ------------ Nothing Alien Tech Used ----------------- None Achievements -------------- None Challenges ------------ None Game ------ Seed IntegratedMachinePerforator Manual? 0 Play Time 00:12:28 Cumulative 2.0 hours Start 2024.07.07 @ 15:09:31 End 2024.07.07 @ 15:20:07 Sessions 1 Manual Loads 0 Difficulty Rogue Special Mode None Game No. 6 Rogue 5 Adventurer 1 Explorer 0 Win Type - Total 0 Types 0/0/0/0/0/0/0/0/0 Lore% 1 Gallery% 6 Achievement% 4 Wizard Run 0 Options --------- Layout 1 ASCII 0 Keyboard 0 Movement Mouse Keybinds 0 Fullscreen 2 Font 24/Smallcaps Map View 50x35 Zoom Use 0% Tactical HUD 0 Map Filters NONE Filters NONE Steam 1 RUN: 6d4dd0ff-0194-4f80-9d49-b401becdbe8d